{"text_format":"3","workbook":"xlsx","n_sheets":4,"sheets":["Početak","Troškovi","Prihodi","Sažetak dobiti i gubitka"],"not_rendered":{"charts":1},"read":"whole","date_system":"1900"}

{"sheet":"Početak","index":0,"n_rows":8,"n_cols":2,"rows_kept":8}
[null,"O OVOM PREDLOŠKU"]
[null,"Pomoću ove radne knjige Proračun za događaj pratite izdatke i prihode od nekog događaja."]
[null,"Unesite naziv događaja i unesite podatke u tablice na radnim listovima Troškovi i Prihodi."]
[null,"Automatski se izračunavaju ukupni izdaci i ukupni prihodi."]
[null,"Sažetak dobiti i gubitka i gubitka automatski se ažuriraju na radnom listu Sažetak dobiti i gubitka."]
[null,"Napomena: "]
[null,"Dodatne su upute navedene u stupcu A na svakom radnom listu. Ovaj je tekst namjerno skriven. Da biste uklonili tekst, odaberite stupac A, a zatim odaberite IZBRIŠI. Da biste otkrili tekst, odaberite stupac A, a zatim promijenite boju fonta."]
[null,"Da biste saznali više o tablicama, pritisnite SHIFT, a zatim F10 unutar tablice pa odaberite mogućnost TABLICA, a potom ZAMJENSKI TEKST."]

{"sheet":"Troškovi","index":1,"n_rows":32,"n_cols":8,"rows_kept":32,"merged":[[0,1,0,4],[2,1,3,1]]}
["U odgovarajuće tablice na ovom radnom listu unesite procijenjeno i stvarno izdatke za svaku kategoriju, a u ćeliju D1 unesite naziv događaja da biste prilagodili naslov ovoga i drugih radnih listova. Podnaslov ovog radnog lista nalazi se u ćeliji H1. U ćelijama u ovom stupcu nalaze se korisne upute za korištenje ovog radnog lista. Sljedeće se upute nalaze u ćeliji A3.","Proračun događaja za naziv događaja",{"$nulls":5},"IZDACI"]
[]
["Oznaka Ukupni izdaci nalazi se u ćeliji s desne strane, oznaka Procijenjeno u ćeliji G3, a oznaka Stvarno u ćeliji H3.","UKUPNI IZDACI",{"$nulls":4},"Procijenjeno","Stvarno"]
["Ukupni procijenjeni izdaci u ćeliji G4 i Ukupni stvarni izdaci u ćeliji H4 izračunavaju se automatski. Sljedeća je uputa u ćeliji A6.",{"$nulls":5},{"$f":"SUM(C11,C19,C25,C32,G11,G19,G24)","v":{"v":882,"d":"882.00 kn"}},{"$f":"SUM(D11,D19,D25,D32,H11,H19,H24)","v":{"v":333,"d":"333.00 kn"}}]
[]
["Unesite Troškovi Lokacije u tablicu koja počinje ćelijom s desne strane, a Troškovi Zakuske u tablicu koja počinje ćelijom F6. Sljedeća je uputa u ćeliji A13.","Web-mjesto","Procijenjeno","Stvarno",null,"Domjenak","Procijenjeno","Stvarno"]
[null,"Naknade za prostorije i dvoranu",{"v":500,"d":"500.00 kn"},null,null,"Hrana"]
[null,"Osoblje na lokaciji",{"$nulls":3},"Pića",{"v":20,"d":"20.00 kn"}]
[null,"Oprema",{"$nulls":3},"Stolnjaci",null,{"v":20,"d":"20.00 kn"}]
[null,"Stolovi i sjedala",{"$nulls":3},"Osoblje i honorari"]
[null,"Zbroj",{"$f":"SUBTOTAL(109,TroškoviLokacije[Procijenjeno])","v":{"v":500,"d":"500.00 kn"}},{"$f":"SUBTOTAL(109,TroškoviLokacije[Stvarno])","v":{"v":0,"d":"0.00 kn"}},null,"Zbroj",{"$f":"SUBTOTAL(109,TroškoviZakuske[Procijenjeno])","v":{"v":20,"d":"20.00 kn"}},{"$f":"SUBTOTAL(109,TroškoviZakuske[Stvarno])","v":{"v":20,"d":"20.00 kn"}}]
[]
["Unesite Troškovi Ukrasa u tablicu koja počinje ćelijom s desne strane, a Troškovi Programa u tablicu koja počinje ćelijom F13. Sljedeća je uputa u ćeliji A21.","Ukrasi","Procijenjeno","Stvarno",null,"Program","Procijenjeno","Stvarno"]
[null,"Cvijeće",{"v":200,"d":"200.00 kn"},{"v":300,"d":"300.00 kn"},null,"Izvođači"]
[null,"Svjećice",{"$nulls":3},"Govornici",{"v":30,"d":"30.00 kn"}]
[null,"Rasvjeta",{"$nulls":3},"Putovanja"]
[null,"Baloni",{"$nulls":3},"Hotel"]
[null,"Papirni materijal",{"$nulls":3},"Ostalo"]
[null,"Zbroj",{"$f":"SUBTOTAL(109,TroškoviUkrasa[Procijenjeno])","v":{"v":200,"d":"200.00 kn"}},{"$f":"SUBTOTAL(109,TroškoviUkrasa[Stvarno])","v":{"v":300,"d":"300.00 kn"}},null,"Zbroj",{"$f":"SUBTOTAL(109,TroškoviPrograma[Procijenjeno])","v":{"v":30,"d":"30.00 kn"}},{"$f":"SUBTOTAL(109,TroškoviPrograma[Stvarno])","v":{"v":0,"d":"0.00 kn"}}]
[]
["Unesite Troškovi Objavljivanja u tablicu koja počinje ćelijom s desne strane, a Troškovi Nagrada u tablicu koja počinje ćelijom F21. Sljedeća se uputa nalazi u ćeliji A27.","Promocija","Procijenjeno","Stvarno",null,"Nagrade","Procijenjeno","Stvarno"]
[null,"Grafički poslovi",{"$nulls":3},"Vrpce/ploče/pehari"]
[null,"Fotokopiranje/ispis",{"v":20,"d":"20.00 kn"},null,null,"Darovi",{"v":100,"d":"100.00 kn"}]
[null,"Poštarina",{"$nulls":3},"Zbroj",{"$f":"SUBTOTAL(109,TroškoviNagrada[Procijenjeno])","v":{"v":100,"d":"100.00 kn"}},{"$f":"SUBTOTAL(109,TroškoviNagrada[Stvarno])","v":{"v":0,"d":"0.00 kn"}}]
[null,"Zbroj",{"$f":"SUBTOTAL(109,TroškoviObjavljivanja[Procijenjeno])","v":{"v":20,"d":"20.00 kn"}},{"$f":"SUBTOTAL(109,TroškoviObjavljivanja[Stvarno])","v":{"v":0,"d":"0.00 kn"}}]
[]
["Unesite Razni Troškovi u tablicu koja počinje u ćeliji s desne strane.","Razno","Procijenjeno","Stvarno"]
[null,"Telefonski broj",null,{"v":13,"d":"13.00 kn"}]
[null,"Prijevoz",{"v":12,"d":"12.00 kn"}]
[null,"Zalihe tiskanica"]
[null,"Usluge faksiranja"]
[null,"Zbroj",{"$f":"SUBTOTAL(109,RazniTroškovi[Procijenjeno])","v":{"v":12,"d":"12.00 kn"}},{"$f":"SUBTOTAL(109,RazniTroškovi[Stvarno])","v":{"v":13,"d":"13.00 kn"}}]

{"sheet":"Prihodi","index":2,"n_rows":29,"n_cols":7,"rows_kept":29,"merged":[[0,1,0,3],[2,1,3,1]]}
["U odgovarajuće tablice na ovom radnom listu unesite procijenjeno i stvarno prihod za svaku kategoriju. U ćelijama s desne strane automatski se ažurira naslov ovog radnog lista. Podnaslov se nalazi u ćeliji G1. U ćelijama u ovom stupcu nalaze se korisne upute za korištenje ovog radnog lista. Sljedeće se upute nalaze u ćeliji A3.",{"$f":"Troškovi!B1","v":"Proračun događaja za naziv događaja"},{"$nulls":4},"PRIHODI"]
[]
["Oznaka Ukupni prihodi nalazi se u ćeliji s desne strane, oznaka Procijenjeno u ćeliji F3, a oznaka Stvarno u ćeliji G3.","UKUPNI PRIHODI",{"$nulls":3},"Procijenjeno","Stvarno"]
["U ćeliji F4 automatski se izračunava ukupni procijenjeni prihod, a u ćeliji G4 ukupni stvarni prihod.",{"$nulls":4},{"$f":"SUM(Ulaznice[[#Totals],[Procijenjeni prihod]],OglasiUProgramu[[#Totals],[Procijenjeni prihod]],IzlagačiIProdavači[[#Totals],[Procijenjeni prihod]],ProdajaArtikala[[#Totals],[Procijenjeni prihod]])","v":{"v":1936,"d":"1,936.00 kn"}},{"$f":"SUM(Ulaznice[[#Totals],[Stvarni prihod]],OglasiUProgramu[[#Totals],[Stvarni prihod]],IzlagačiIProdavači[[#Totals],[Stvarni prihod]],ProdajaArtikala[[#Totals],[Stvarni prihod]])","v":{"v":1831,"d":"1,831.00 kn"}}]
["Oznaka Ulaznice nalazi se u ćeliji s desne strane.","ULAZNICE"]
["U tablicu koja počinje u ćeliji s desne stane unesite procijenjeni i stvarni broj ulaznica s cijenama. Procijenjeni i stvarni prihod od ulaznica izračunava se automatski. Sljedeća je uputa u ćeliji A11.","Procijenjeni broj","Stvarni broj","Vrsta","Cijena","Procijenjeni prihod","Stvarni prihod"]
[null,300,278,"Odrasli @",{"v":5,"d":"5.00 kn"},{"$f":"B7*E7","v":{"v":1500,"d":"1,500.00 kn"}},{"$f":"C7*E7","v":{"v":1390,"d":"1,390.00 kn"}}]
[null,197,195,"Djeca @",{"v":2,"d":"2.00 kn"},{"$f":"B8*E8","v":{"v":394,"d":"394.00 kn"}},{"$f":"C8*E8","v":{"v":390,"d":"390.00 kn"}}]
[null,42,51,"Ostalo @",{"v":1,"d":"1.00 kn"},{"$f":"B9*E9","v":{"v":42,"d":"42.00 kn"}},{"$f":"C9*E9","v":{"v":51,"d":"51.00 kn"}}]
[null,"Zbroj",{"$nulls":3},{"$f":"SUBTOTAL(109,Ulaznice[Procijenjeni prihod])","v":{"v":1936,"d":"1,936.00 kn"}},{"$f":"SUBTOTAL(109,Ulaznice[Stvarni prihod])","v":{"v":1831,"d":"1,831.00 kn"}}]
["Oznaka Oglasi u programu nalazi se u ćeliji s desne strane.","OGLASI U PROGRAMU"]
["U tablicu koja počinje u ćeliji s desne stane unesite procijenjeni i stvarni broj oglasa u programu i cijena oglasa. Procijenjeni i stvarni prihod od oglasa izračunava se automatski. Sljedeća se uputa nalaze u ćeliji A17.","Procijenjeni broj","Stvarni broj","Vrsta","Cijena","Procijenjeni prihod","Stvarni prihod"]
[null,12,null,"Naslovnice @",null,{"$f":"B13*E13","v":{"v":0,"d":"0.00 kn"}},{"$f":"C13*E13","v":{"v":0,"d":"0.00 kn"}}]
[null,null,158,"Polovine stranica @",null,{"$f":"B14*E14","v":{"v":0,"d":"0.00 kn"}},{"$f":"C14*E14","v":{"v":0,"d":"0.00 kn"}}]
[null,4,null,"Četvrtine stranica @",null,{"$f":"B15*E15","v":{"v":0,"d":"0.00 kn"}},{"$f":"C15*E15","v":{"v":0,"d":"0.00 kn"}}]
[null,"Zbroj",{"$nulls":3},{"$f":"SUBTOTAL(109,OglasiUProgramu[Procijenjeni prihod])","v":{"v":0,"d":"0.00 kn"}},{"$f":"SUBTOTAL(109,OglasiUProgramu[Stvarni prihod])","v":{"v":0,"d":"0.00 kn"}}]
["U ćeliji s desne strane nalazi se oznaka Izlagači ili Dobavljači.","IZLAGAČI/DOBAVLJAČI"]
["U tablicu koja počinje u ćeliji s desne stane unesite procijenjeni i stvarni broj izlagača i dobavljača te cijene štandova. Procijenjeni i stvarni prihod izračunava se automatski. Sljedeća se uputa nalazi u ćeliji A23.","Procijenjeni broj","Stvarni broj","Vrsta","Cijena","Procijenjeni prihod","Stvarni prihod"]
[null,23,null,"Veliki štandovi @",null,{"$f":"B19*E19","v":{"v":0,"d":"0.00 kn"}},{"$f":"C19*E19","v":{"v":0,"d":"0.00 kn"}}]
[null,354,null,"Srednji štandovi @",null,{"$f":"B20*E20","v":{"v":0,"d":"0.00 kn"}},{"$f":"C20*E20","v":{"v":0,"d":"0.00 kn"}}]
[null,56,null,"Mali štandovi @",null,{"$f":"B21*E21","v":{"v":0,"d":"0.00 kn"}},{"$f":"C21*E21","v":{"v":0,"d":"0.00 kn"}}]
[null,"Zbroj",{"$nulls":3},{"$f":"SUBTOTAL(109,IzlagačiIProdavači[Procijenjeni prihod])","v":{"v":0,"d":"0.00 kn"}},{"$f":"SUBTOTAL(109,IzlagačiIProdavači[Stvarni prihod])","v":{"v":0,"d":"0.00 kn"}}]
["Oznaka Prodaja artikala nalazi se u ćeliji s desne strane.","PRODAJA ARTIKALA"]
["U tablicu koja počinje u ćeliji s desne stane unesite procijenjeni i stvarni broj prodanih artikala te cijene artikala. Procijenjeni i stvarni prihod izračunava se automatski.","Procijenjeni broj","Stvarni broj","Vrsta","Cijena","Procijenjeni prihod","Stvarni prihod"]
[{"$nulls":3},"Artikli @",null,{"$f":"B25*E25","v":{"v":0,"d":"0.00 kn"}},{"$f":"C25*E25","v":{"v":0,"d":"0.00 kn"}}]
[null,123,null,"Artikli @",null,{"$f":"B26*E26","v":{"v":0,"d":"0.00 kn"}},{"$f":"C26*E26","v":{"v":0,"d":"0.00 kn"}}]
[{"$nulls":3},"Artikli @",null,{"$f":"B27*E27","v":{"v":0,"d":"0.00 kn"}},{"$f":"C27*E27","v":{"v":0,"d":"0.00 kn"}}]
[null,13,null,"Artikli @",null,{"$f":"B28*E28","v":{"v":0,"d":"0.00 kn"}},{"$f":"C28*E28","v":{"v":0,"d":"0.00 kn"}}]
[null,"Zbroj",{"$nulls":3},{"$f":"SUBTOTAL(109,ProdajaArtikala[Procijenjeni prihod])","v":{"v":0,"d":"0.00 kn"}},{"$f":"SUBTOTAL(109,ProdajaArtikala[Stvarni prihod])","v":{"v":0,"d":"0.00 kn"}}]

{"sheet":"Sažetak dobiti i gubitka","index":3,"n_rows":8,"n_cols":7,"rows_kept":8,"merged":[[0,1,0,3],[2,4,11,6]]}
["Na ovom se radnom listu automatski ažuriraju sažetak i grafikon dobiti i gubitka u kojim se prikazuju ukupni prihodi i izdaci. U ćelijama s desne strane automatski se ažurira naslov ovog radnog lista. Podnaslov se nalazi u ćeliji G1 i G2. U ćelijama u ovom stupcu nalaze se korisne upute za korištenje ovog radnog lista. Sljedeće se upute nalaze u ćeliji A3.",{"$f":"Troškovi!B1","v":"Proračun događaja za naziv događaja"},{"$nulls":4},"DOBIT "]
[{"$nulls":6},"Sažetak gubitka"]
["Trakasti grafikon s prikazom procijenjenog prihoda i troškova te stvarnog prihoda i izdataka nalazi se u ćeliji E3.",{"$nulls":3},"U ovoj se ćeliji nalazi trakasti grafikon s usporedbom procijenjenih prihoda i izdataka te stvarnih prihoda i izdataka."]
["Tablica sažetka koja počinje u ćeliji s desne strane ažurira se automatski. Sljedeća je uputa u ćeliji A8."," Zbroj","Procijenjeno","Stvarno"]
[null,"Ukupni prihod",{"$f":"Prihodi!F4","v":{"v":1936,"d":"1,936.00 kn"}},{"$f":"Prihodi!G4","v":{"v":1831,"d":"1,831.00 kn"}}]
[null,"Ukupni izdaci",{"$f":"Troškovi!G4","v":{"v":882,"d":"882.00 kn"}},{"$f":"Troškovi!H4","v":{"v":333,"d":"333.00 kn"}}]
[]
["U ćeliji C8 automatski se izračunava procijenjeni Ukupna dobit ili gubitak, a u ćeliji D8 stvarni Ukupna dobit ili gubitak.","Ukupna dobit                     (ili gubitak)",{"$f":"C5-C6","v":{"v":1054,"d":"1,054.00 kn"}},{"$f":"D5-D6","v":{"v":1498,"d":"1,498.00 kn"}}]